[Event "71st RUS-ch Higher League 2018"]
[Site "Yaroslavl"]
[Date "2018.06.30"]
[Round "5"]
[White "Iskusnyh, Sergei"]
[Black "Romanov, Evgeny"]
[Result "0-1"]
[ECO "E04"]
[WhiteElo "2473"]
[BlackElo "2628"]
[Annotator "ChessBase"]
[PlyCount "108"]
[EventDate "2018.06.26"]
[EventType "swiss"]
[EventCountry "RUS"]
[SourceTitle "playchess.com"]
[Source "ChessBase"]
[SourceQuality "1"]
[TimeControl "40/5400+30:1800+30"]

1. d4 {[%emt 0:00:00]} d5 {[%emt 0:02:44]} 2. c4 {[%emt 0:00:00]} e6 {[%emt 0:00:09]} 3. Nf3 {[%emt 0:00:04]} Nf6 {[%emt 0:00:11]} 4. g3 {[%emt 0:00:09]} dxc4 {[%emt 0:00:46]} 5. Bg2 {[%emt 0:00:08]} Nc6 {[%emt 0:00:17]} 6. Qa4 {[%emt 0:03:54]} Nd7 {[%emt 0:00:16]} 7. Qxc4 {[%emt 0:01:32]} Nb6 {[%emt 0:00:08]} 8. Qd3 {[%emt 0:00:09]} e5 {[%emt 0:01:21]} 9. Be3 {[%emt 0:02:56]} Nb4 {[%emt 0:10:29]} 10. Qb5+ {[%emt 0:14:08]} Nd7 {[%emt 0:00:56]} 11. O-O {[%emt 0:22:44]} c6 {[%emt 0:05:44]} 12. Qc4 {[%emt 0:01:37]} Nb6 {[%emt 0:02:29]} 13. Qc1 {[%emt 0:01:11]} e4 {[%emt 0:04:36]} 14. Ne5 {[%emt 0:11:17]} f6 {[%emt 0:04:54]} 15. Nc4 {[%emt 0:00:15]} f5 {[%emt 0:00:24]} 16. Nxb6 {[%emt 0:13:00]} axb6 {[%emt 0:00:35]} 17. Nc3 {[%emt 0:00:04]} Be6 {[%emt 0:04:23]} 18. f3 {[%emt 0:08:08]} exf3 {[%emt 0:01:10]} 19. Bxf3 {[%emt 0:00:12]} Be7 {[%emt 0:12:33]} 20. a3 {[%emt 0:00:51]} Nd5 {[%emt 0:04:41]} 21. Bxd5 {[%emt 0:00:11]} cxd5 {[%emt 0:00:10]} 22. Bf4 {[%emt 0:00:14]} O-O {[%emt 0:00:43]} 23. Qe3 {[%emt 0:02:49]} Bf7 {[%emt 0:00:56]} 24. Rac1 {[%emt 0:02:14]} Rc8 {[%emt 0:02:26]} 25. Nb1 {[%emt 0:10:48]} Rc6 {[%emt 0:01:14]} 26. Nd2 {[%emt 0:00:34]} Re6 {[%emt 0:02:23]} 27. Qd3 {[%emt 0:00:16]} Bh5 {[%emt 0:01:14]} 28. Nf3 {[%emt 0:01:43]} Bf6 {[%emt 0:06:52]} 29. Rc2 {[%emt 0:02:39]} g5 {[%emt 0:04:07]} 30. Be5 {[%emt 0:00:28]} Bxf3 {[%emt 0:03:26]} 31. exf3 {[%emt 0:00:02]} Bxe5 {[%emt 0:00:49]} 32. dxe5 {[%emt 0:00:02]} Rxe5 {[%emt 0:00:08]} 33. f4 {[%emt 0:00:02]} gxf4 {[%emt 0:01:16]} 34. Rxf4 {[%emt 0:00:08]} Qd7 {[%emt 0:05:30]} 35. Rf1 {[%emt 0:02:17]} d4 {[%emt 0:03:52]} 36. Rd2 {[%emt 0:00:36]} Re4 {[%emt 0:02:21]} 37. Qb3+ {[%emt 0:00:23]} Rf7 {[%emt 0:03:45]} 38. Qxb6 {[%emt 0:00:26]} f4 {[%emt 0:00:39]} 39. Qb3 Kf8 {[%emt 0:05:48]} 40. gxf4 {[%emt 0:00:00]} Rg7+ {[%emt 0:00:00]} 41. Rg2 {[%emt 0:14:44]} Rxg2+ {[%emt 0:06:54]} 42. Kxg2 {[%emt 0:00:06]} d3 {[%emt 0:00:14]} 43. Qc3 {[%emt 0:06:38]} Re2+ {[%emt 0:06:11]} 44. Kg3 {[%emt 0:02:12]} Qf5 {[%emt 0:02:54]} 45. Qb4+ {[%emt 0:04:38]} Ke8 {[%emt 0:01:19]} 46. Re1 {[%emt 0:05:05]} Qg6+ {[%emt 0:01:18]} 47. Kh4 {[%emt 0:00:07]} Qh6+ {[%emt 0:00:58]} 48. Kg4 {[%emt 0:00:05]} Qe6+ {[%emt 0:02:21]} 49. f5 {[%emt 0:00:05]} h5+ {[%emt 0:00:33]} 50. Kg5 {[%emt 0:00:34]} Qe3+ {[%emt 0:00:23]} 51. Kg6 {[%emt 0:00:54]} Rxe1 {[%emt 0:00:22]} 52. Qb5+ {[%emt 0:00:11]} Kf8 {[%emt 0:00:23]} 53. Qb4+ {[%emt 0:01:00]} Qe7 {[%emt 0:00:21]} 54. Qd4 {[%emt 0:00:15]} Rg1+ {[%emt 0:00:47]} 0-1

[Event "71st RUS-ch Higher League 2018"]
[Site "Yaroslavl"]
[Date "2018.06.30"]
[Round "5"]
[White "Yanchenko, Roman"]
[Black "Volkov, Sergey"]
[Result "1-0"]
[ECO "A06"]
[WhiteElo "2462"]
[BlackElo "2580"]
[Annotator "ChessBase"]
[PlyCount "133"]
[EventDate "2018.06.26"]
[EventType "swiss"]
[EventCountry "RUS"]
[SourceTitle "playchess.com"]
[Source "ChessBase"]
[SourceQuality "1"]
[TimeControl "40/5400+30:1800+30"]

1. Nf3 {[%emt 0:00:00]} d5 {[%emt 0:00:00]} 2. e3 {[%emt 0:00:00]} c5 {[%emt 0:00:13]} 3. d4 {[%emt 0:00:19]} e6 {[%emt 0:01:14]} 4. c4 {[%emt 0:00:51]} cxd4 {[%emt 0:00:55]} 5. Nxd4 {[%emt 0:00:33]} Ne7 {[%emt 0:02:17]} 6. Nc3 {[%emt 0:00:51]} g6 {[%emt 0:00:59]} 7. cxd5 {[%emt 0:02:55]} exd5 {[%emt 0:00:27]} 8. Bb5+ {[%emt 0:00:25]} Bd7 {[%emt 0:04:05]} 9. Qb3 {[%emt 0:02:52]} Bg7 {[%emt 0:05:28]} 10. O-O {[%emt 0:17:32]} Bxb5 {[%emt 0:08:10]} 11. Qxb5+ {[%emt 0:03:15]} Qd7 {[%emt 0:00:54]} 12. Qxd7+ {[%emt 0:01:03]} Nxd7 {[%emt 0:00:14]} 13. Ndb5 {[%emt 0:00:10]} O-O {[%emt 0:00:15]} 14. Rd1 {[%emt 0:02:46]} Nf6 {[%emt 0:06:07]} 15. b3 {[%emt 0:06:38]} Ne4 {[%emt 0:06:50]} 16. Bb2 {[%emt 0:00:08]} Rfc8 {[%emt 0:10:33]} 17. Rac1 {[%emt 0:03:07]} Nf5 {[%emt 0:17:32]} 18. Rxd5 {[%emt 0:07:54]} a6 {[%emt 0:03:35]} 19. Nd4 {[%emt 0:01:46]} Nxd4 {[%emt 0:05:42]} 20. exd4 {[%emt 0:00:10]} Bh6 {[%emt 0:00:29]} 21. Rc2 {[%emt 0:03:15]} Bd2 {[%emt 0:07:00]} 22. Rxd2 {[%emt 0:02:38]} Nxd2 {[%emt 0:00:09]} 23. f3 {[%emt 0:00:49]} b5 {[%emt 0:00:15]} 24. Rc5 {[%emt 0:00:41]} Rxc5 {[%emt 0:04:16]} 25. dxc5 {[%emt 0:00:02]} Rc8 {[%emt 0:00:11]} 26. Nd5 {[%emt 0:00:06]} Kf8 {[%emt 0:00:45]} 27. Kf2 {[%emt 0:10:17]} a5 {[%emt 0:00:28]} 28. Be5 {[%emt 0:00:35]} a4 {[%emt 0:02:06]} 29. Nb6 {[%emt 0:03:14]} Rc6 {[%emt 0:01:48]} 30. bxa4 {[%emt 0:02:31]} bxa4 {[%emt 0:00:33]} 31. Ke2 {[%emt 0:00:16]} Nb1 {[%emt 0:00:27]} 32. Kd3 {[%emt 0:04:27]} Ke7 {[%emt 0:00:43]} 33. Kc4 {[%emt 0:05:21]} Re6 {[%emt 0:04:31]} 34. Kd5 {[%emt 0:01:48]} Na3 {[%emt 0:00:18]} 35. Nc8+ {[%emt 0:05:41]} Kd7 {[%emt 0:02:09]} 36. Na7 {[%emt 0:00:31]} Rxe5+ {[%emt 0:01:36]} 37. Kxe5 {[%emt 0:00:02]} Nc2 {[%emt 0:01:00]} 38. c6+ {[%emt 0:00:59]} Kc7 {[%emt 0:00:03]} 39. Kd5 {[%emt 0:00:02]} Nb4+ {[%emt 0:00:34]} 40. Kc5 {[%emt 0:00:00]} Nd3+ {[%emt 0:00:00]} 41. Kc4 {[%emt 0:00:41]} Nf4 {[%emt 0:01:31]} 42. g3 {[%emt 0:01:59]} Ne6 {[%emt 0:00:05]} 43. Kd5 {[%emt 0:00:03]} Kb6 {[%emt 0:00:54]} 44. Nc8+ {[%emt 0:00:02]} Kb5 {[%emt 0:00:58]} 45. Nd6+ {[%emt 0:01:37]} Kb4 {[%emt 0:00:05]} 46. Nxf7 {[%emt 0:00:30]} Nc7+ {[%emt 0:00:06]} 47. Kd6 {[%emt 0:00:01]} Na6 {[%emt 0:00:14]} 48. Ne5 {[%emt 0:00:29]} Ka3 {[%emt 0:00:04]} 49. Nd3 {[%emt 0:00:18]} Kxa2 {[%emt 0:00:05]} 50. Nc5 {[%emt 0:00:05]} a3 {[%emt 0:00:18]} 51. Nxa6 {[%emt 0:00:14]} Kb3 {[%emt 0:00:05]} 52. c7 {[%emt 0:01:36]} a2 {[%emt 0:00:06]} 53. c8=Q {[%emt 0:00:06]} a1=Q {[%emt 0:00:03]} 54. Qb7+ {[%emt 0:00:09]} Kc2 {[%emt 0:00:14]} 55. Qe4+ {[%emt 0:01:07]} Kd2 {[%emt 0:00:15]} 56. Nc5 {[%emt 0:00:11]} Qa7 {[%emt 0:00:20]} 57. Qd3+ {[%emt 0:00:55]} Ke1 {[%emt 0:00:03]} 58. Ne4 {[%emt 0:00:19]} h5 {[%emt 0:00:58]} 59. f4 {[%emt 0:04:19]} h4 {[%emt 0:00:15]} 60. Qd2+ {[%emt 0:00:47]} Kf1 {[%emt 0:00:05]} 61. Qf2+ {[%emt 0:00:46]} Qxf2 {[%emt 0:00:08]} 62. Nxf2 {[%emt 0:00:01]} Kxf2 {[%emt 0:00:52]} 63. gxh4 {[%emt 0:00:04]} Kg2 {[%emt 0:00:10]} 64. Ke5 {[%emt 0:00:11]} Kxh2 {[%emt 0:00:32]} 65. Kf6 {[%emt 0:00:04]} Kg3 {[%emt 0:00:10]} 66. Kxg6 {[%emt 0:00:03]} Kxf4 {[%emt 0:00:09]} 67. h5 {[%emt 0:00:03]} 1-0

[Event "71st RUS-ch Higher League 2018"]
[Site "Yaroslavl"]
[Date "2018.06.30"]
[Round "5"]
[White "Girya, Olga"]
[Black "Antipov, Mikhail Al."]
[Result "1-0"]
[ECO "D15"]
[WhiteElo "2457"]
[BlackElo "2616"]
[Annotator "ChessBase"]
[PlyCount "113"]
[EventDate "2018.06.26"]
[EventType "swiss"]
[EventCountry "RUS"]
[SourceTitle "playchess.com"]
[Source "ChessBase"]
[SourceQuality "1"]
[TimeControl "40/5400+30:1800+30"]

1. d4 {[%emt 0:00:00]} Nf6 {[%emt 0:00:00]} 2. c4 {[%emt 0:00:00]} c6 {[%emt 0:00:00]} 3. Nc3 {[%emt 0:00:15]} d5 {[%emt 0:00:00]} 4. e3 {[%emt 0:00:19]} a6 {[%emt 0:00:00]} 5. Nf3 {[%emt 0:00:06]} Bf5 {[%emt 0:00:00]} 6. cxd5 {[%emt 0:00:19]} cxd5 {[%emt 0:00:04]} 7. Ne5 {[%emt 0:00:04]} Nc6 {[%emt 0:00:06]} 8. Bd2 {[%emt 0:00:16]} Qd6 {[%emt 0:42:04]} 9. g4 {[%emt 0:14:33]} Bc8 {[%emt 0:13:12]} 10. f4 {[%emt 0:10:08]} e6 {[%emt 0:02:24]} 11. Rc1 {[%emt 0:10:26]} Nd7 {[%emt 0:03:45]} 12. Nxc6 {[%emt 0:04:29]} bxc6 {[%emt 0:00:10]} 13. Na4 {[%emt 0:00:09]} Be7 {[%emt 0:04:37]} 14. Qc2 {[%emt 0:06:54]} Bb7 {[%emt 0:00:51]} 15. Bd3 {[%emt 0:01:14]} g5 {[%emt 0:04:46]} 16. Nc5 {[%emt 0:08:18]} Bc8 {[%emt 0:03:08]} 17. Nb3 {[%emt 0:09:37]} Nb8 {[%emt 0:00:08]} 18. O-O {[%emt 0:01:14]} h5 {[%emt 0:01:21]} 19. gxh5 {[%emt 0:03:38]} f5 {[%emt 0:00:48]} 20. Na5 {[%emt 0:02:18]} Ra7 {[%emt 0:06:00]} 21. a3 {[%emt 0:01:12]} gxf4 {[%emt 0:01:53]} 22. Bb4 {[%emt 0:04:58]} Qc7 {[%emt 0:09:39]} 23. Bxe7 {[%emt 0:02:16]} Qxe7 {[%emt 0:00:08]} 24. Rxf4 {[%emt 0:07:01]} Qd8 {[%emt 0:02:15]} 25. b4 {[%emt 0:03:00]} Rxh5 {[%emt 0:01:01]} 26. Kh1 {[%emt 0:02:03]} Rah7 {[%emt 0:02:05]} 27. Rg1 {[%emt 0:00:43]} Kf7 {[%emt 0:00:07]} 28. Rg2 {[%emt 0:01:13]} Bd7 {[%emt 0:01:41]} 29. Nb7 {[%emt 0:02:13]} Qb6 {[%emt 0:01:22]} 30. Nc5 {[%emt 0:00:08]} a5 {[%emt 0:00:27]} 31. Qc3 {[%emt 0:04:43]} axb4 {[%emt 0:00:20]} 32. axb4 {[%emt 0:00:37]} Ke7 {[%emt 0:00:58]} 33. Be2 {[%emt 0:00:42]} Rh3 {[%emt 0:00:16]} 34. Bf1 {[%emt 0:00:36]} Be8 {[%emt 0:00:32]} 35. Ra2 {[%emt 0:00:39]} R3h6 {[%emt 0:00:14]} 36. Qa3 {[%emt 0:00:47]} Qc7 {[%emt 0:00:57]} 37. Nd3 {[%emt 0:00:28]} Nd7 {[%emt 0:00:37]} 38. b5+ {[%emt 0:00:22]} Qd6 {[%emt 0:00:29]} 39. Qxd6+ {[%emt 0:00:28]} Kxd6 {[%emt 0:00:05]} 40. bxc6 {[%emt 0:00:00]} Kxc6 {[%emt 0:00:00]} 41. Rff2 {[%emt 0:06:35]} Kd6 {[%emt 0:02:40]} 42. Nf4 {[%emt 0:03:11]} Nb8 {[%emt 0:07:24]} 43. Rfb2 {[%emt 0:04:43]} Nc6 {[%emt 0:00:17]} 44. Bb5 {[%emt 0:05:55]} e5 {[%emt 0:08:25]} 45. dxe5+ {[%emt 0:02:26]} Kxe5 {[%emt 0:00:09]} 46. Nd3+ {[%emt 0:00:33]} Ke4 {[%emt 0:10:01]} 47. Nc5+ {[%emt 0:00:15]} Ke5 {[%emt 0:00:10]} 48. Nd3+ {[%emt 0:00:04]} Ke4 {[%emt 0:00:04]} 49. Ra4+ {[%emt 0:00:24]} d4 {[%emt 0:00:05]} 50. exd4 {[%emt 0:02:55]} Bh5 {[%emt 0:01:15]} 51. Bxc6+ {[%emt 0:05:05]} Kxd3 {[%emt 0:00:28]} 52. Bd5 {[%emt 0:01:21]} Rc7 {[%emt 0:02:51]} 53. Rb3+ {[%emt 0:00:51]} Kd2 {[%emt 0:01:13]} 54. Bc4 {[%emt 0:01:15]} Bd1 {[%emt 0:02:52]} 55. Ra2+ {[%emt 0:01:27]} Kc1 {[%emt 0:00:32]} 56. Rc3+ {[%emt 0:00:38]} Kb1 {[%emt 0:00:01]} 57. Rf2 {[%emt 0:00:32]} 1-0

[Event "71st RUS-ch Higher League 2018"]
[Site "Yaroslavl"]
[Date "2018.06.30"]
[Round "5"]
[White "Oganian, Miran"]
[Black "Bimiev, Ahmad"]
[Result "1-0"]
[ECO "E06"]
[WhiteElo "2432"]
[BlackElo "2125"]
[Annotator "NA"]
[PlyCount "121"]
[EventDate "2018.06.26"]
[EventType "swiss"]
[EventCountry "RUS"]
[SourceTitle "playchess.com"]
[Source "ChessBase"]
[SourceQuality "1"]
[TimeControl "40/5400+30:1800+30"]

1. d4 {[%emt 0:00:00]} Nf6 {[%emt 0:00:00]} 2. c4 {[%emt 0:00:00]} e6 {[%emt 0:00:00]} 3. g3 {[%emt 0:00:00]} d5 {[%emt 0:00:00]} 4. Nf3 {[%emt 0:00:00]} Be7 {[%emt 0:00:00]} 5. Bg2 {[%emt 0:00:00]} O-O {[%emt 0:00:05]} 6. O-O {[%emt 0:00:00]} dxc4 {[%emt 0:00:05]} 7. Ne5 {[%emt 0:01:30]} Nbd7 {[%emt 0:03:41]} 8. Nxc4 {[%emt 0:01:29]} c5 {[%emt 0:02:36]} 9. dxc5 {[%emt 0:03:23]} Nxc5 {[%emt 0:01:24]} 10. Nc3 {[%emt 0:00:33]} a5 {[%emt 0:19:57]} 11. Qxd8 {[%emt 0:08:59]} Rxd8 {[%emt 0:00:12]} 12. Bf4 {[%emt 0:01:00]} Ra6 {[%emt 0:09:40]} 13. Bc7 {[%emt 0:13:20]} Rd7 {[%emt 0:04:29]} 14. Nb5 {[%emt 0:12:32]} a4 {[%emt 0:04:49]} 15. Rac1 {[%emt 0:03:20]} Bf8 {[%emt 0:33:13]} 16. Bd6 {[%emt 0:20:52]} Nce4 {[%emt 0:03:09]} 17. Bxf8 Kxf8 {[%emt 0:00:01]} 18. f3 {[%emt 0:02:54]} Nc5 {[%emt 0:01:33]} 19. Ne5 {[%emt 0:06:16]} b6 {[%emt 0:00:10]} 20. Nxd7+ {[%emt 0:01:17]} Bxd7 {[%emt 0:00:01]} 21. Nc3 {[%emt 0:00:27]} Ke7 {[%emt 0:00:13]} 22. Rfd1 {[%emt 0:00:25]} Ne8 {[%emt 0:00:35]} 23. e4 {[%emt 0:01:06]} f6 {[%emt 0:00:15]} 24. Bf1 {[%emt 0:00:09]} Ra5 {[%emt 0:00:05]} 25. Rd4 {[%emt 0:01:30]} Nc7 {[%emt 0:00:34]} 26. Rb4 {[%emt 0:07:13]} b5 {[%emt 0:01:48]} 27. Rd4 {[%emt 0:03:47]} N5a6 {[%emt 0:01:26]} 28. Nd1 {[%emt 0:02:59]} Ne8 {[%emt 0:02:04]} 29. Ne3 {[%emt 0:00:27]} Nb8 {[%emt 0:00:11]} 30. a3 {[%emt 0:01:50]} Nc6 {[%emt 0:00:23]} 31. Rd2 {[%emt 0:00:32]} Ne5 {[%emt 0:01:10]} 32. Kf2 {[%emt 0:00:35]} Nd6 {[%emt 0:00:33]} 33. Rcd1 {[%emt 0:01:41]} Ra6 {[%emt 0:00:09]} 34. Nc2 {[%emt 0:01:39]} g5 {[%emt 0:00:27]} 35. Nb4 {[%emt 0:00:30]} Rb6 {[%emt 0:00:08]} 36. h3 {[%emt 0:01:01]} Be8 {[%emt 0:00:31]} 37. Rc2 {[%emt 0:00:51]} Rb7 {[%emt 0:01:35]} 38. Be2 {[%emt 0:01:36]} h5 {[%emt 0:02:18]} 39. f4 {[%emt 0:02:12]} Nec4 {[%emt 0:01:34]} 40. Bxc4 {[%emt 0:00:00]} Nxc4 {[%emt 0:00:00]} 41. h4 {[%emt 0:04:45]} gxf4 {[%emt 0:02:19]} 42. gxf4 {[%emt 0:00:10]} Bg6 {[%emt 0:00:24]} 43. Kf3 {[%emt 0:05:54]} Be8 {[%emt 0:01:03]} 44. Rg2 {[%emt 0:02:33]} Kf8 {[%emt 0:00:30]} 45. f5 {[%emt 0:09:58]} exf5 {[%emt 0:00:15]} 46. exf5 {[%emt 0:00:07]} Bd7 {[%emt 0:00:06]} 47. Rdg1 {[%emt 0:01:43]} Ne5+ {[%emt 0:01:17]} 48. Kf4 {[%emt 0:00:53]} Ng4 {[%emt 0:00:16]} 49. Rd2 {[%emt 0:01:58]} Kf7 {[%emt 0:02:20]} 50. Rgd1 {[%emt 0:01:43]} Be8 {[%emt 0:00:53]} 51. Rc1 {[%emt 0:00:18]} Ne5 {[%emt 0:01:16]} 52. Rc8 {[%emt 0:02:49]} Rb6 {[%emt 0:03:32]} 53. Rc7+ {[%emt 0:00:40]} Kf8 {[%emt 0:00:01]} 54. Rd8 {[%emt 0:01:21]} Nf7 {[%emt 0:00:29]} 55. Nd5 {[%emt 0:02:32]} Ra6 {[%emt 0:00:33]} 56. Rxf7+ {[%emt 0:01:08]} Kxf7 {[%emt 0:00:10]} 57. Rxe8 {[%emt 0:00:25]} Rd6 {[%emt 0:00:04]} 58. Re7+ {[%emt 0:00:06]} Kf8 {[%emt 0:00:05]} 59. Ke4 {[%emt 0:00:07]} Rxd5 {[%emt 0:00:16]} 60. Kxd5 {[%emt 0:00:06]} Kxe7 {[%emt 0:00:03]} 61. Kc6 {[%emt 0:00:07]} 1-0

[Event "71st RUS-ch Higher League 2018"]
[Site "Yaroslavl"]
[Date "2018.06.30"]
[Round "5"]
[White "Gogolev, Artem"]
[Black "Sek, Konstantin"]
[Result "0-1"]
[ECO "A46"]
[WhiteElo "2407"]
[BlackElo "2476"]
[Annotator "ChessBase"]
[PlyCount "104"]
[EventDate "2018.06.26"]
[EventType "swiss"]
[EventCountry "RUS"]
[SourceTitle "playchess.com"]
[Source "ChessBase"]
[SourceQuality "1"]
[TimeControl "40/5400+30:1800+30"]

1. d4 {[%emt 0:02:46]} Nf6 {[%emt 0:00:00]} 2. Nf3 {[%emt 0:00:09]} e6 {[%emt 0:00:00]} 3. g3 {[%emt 0:00:06]} c5 {[%emt 0:00:00]} 4. Bg2 {[%emt 0:00:18]} cxd4 {[%emt 0:01:47]} 5. Nxd4 {[%emt 0:00:07]} d5 {[%emt 0:00:11]} 6. O-O {[%emt 0:00:34]} e5 {[%emt 0:00:22]} 7. Nb3 {[%emt 0:00:52]} Be6 {[%emt 0:00:15]} 8. Bg5 {[%emt 0:06:03]} Nbd7 {[%emt 0:02:08]} 9. Nc3 {[%emt 0:03:35]} h6 {[%emt 0:04:55]} 10. Bxf6 {[%emt 0:09:24]} Nxf6 {[%emt 0:00:06]} 11. Qd3 {[%emt 0:00:43]} Qd7 {[%emt 0:18:02]} 12. Rad1 {[%emt 0:13:43]} d4 {[%emt 0:00:52]} 13. Ne4 {[%emt 0:04:16]} Rc8 {[%emt 0:00:16]} 14. Nxf6+ {[%emt 0:00:38]} gxf6 {[%emt 0:00:02]} 15. c3 {[%emt 0:09:20]} dxc3 {[%emt 0:07:53]} 16. Qxd7+ {[%emt 0:06:15]} Bxd7 {[%emt 0:00:07]} 17. Rxd7 {[%emt 0:00:17]} Kxd7 {[%emt 0:00:07]} 18. Bh3+ {[%emt 0:00:04]} Kc7 {[%emt 0:00:27]} 19. Bxc8 {[%emt 0:00:06]} Kxc8 {[%emt 0:01:17]} 20. Rc1 {[%emt 0:00:10]} Kd7 {[%emt 0:01:26]} 21. Rxc3 {[%emt 0:00:07]} h5 {[%emt 0:00:46]} 22. Kg2 {[%emt 0:02:31]} b6 {[%emt 0:02:56]} 23. Kf3 {[%emt 0:08:56]} Bd6 {[%emt 0:02:17]} 24. Nd2 {[%emt 0:03:44]} Bb4 {[%emt 0:01:35]} 25. Rc2 {[%emt 0:00:44]} f5 {[%emt 0:04:05]} 26. a3 {[%emt 0:05:03]} Bd6 {[%emt 0:03:02]} 27. b4 {[%emt 0:07:29]} h4 {[%emt 0:02:06]} 28. e4 {[%emt 0:03:57]} hxg3 {[%emt 0:03:38]} 29. hxg3 {[%emt 0:00:02]} fxe4+ {[%emt 0:03:59]} 30. Nxe4 {[%emt 0:00:04]} Be7 {[%emt 0:02:42]} 31. g4 {[%emt 0:04:04]} Rh1 {[%emt 0:00:53]} 32. Rd2+ {[%emt 0:02:33]} Ke6 {[%emt 0:00:52]} 33. Rd3 {[%emt 0:00:48]} Ra1 {[%emt 0:00:15]} 34. Nd2 {[%emt 0:00:53]} f5 {[%emt 0:05:39]} 35. gxf5+ Kxf5 {[%emt 0:00:01]} 36. Kg2 {[%emt 0:03:02]} Ra2 {[%emt 0:02:56]} 37. Nc4 {[%emt 0:01:53]} b5 {[%emt 0:08:03]} 38. Ne3+ {[%emt 0:02:19]} Ke4 {[%emt 0:00:17]} 39. Rc3 {[%emt 0:00:11]} Bg5 {[%emt 0:04:40]} 40. Nc2 {[%emt 0:00:00]} Bd2 {[%emt 0:00:00]} 41. Rc5 {[%emt 0:02:32]} a6 {[%emt 0:06:47]} 42. Kg3 {[%emt 0:01:44]} Kd3 {[%emt 0:02:41]} 43. Ne3 {[%emt 0:00:50]} Bxe3 {[%emt 0:06:29]} 44. fxe3 {[%emt 0:00:15]} Ke4 {[%emt 0:00:01]} 45. Rc6 {[%emt 0:02:50]} Rxa3 {[%emt 0:00:19]} 46. Kg4 {[%emt 0:00:05]} Kxe3 {[%emt 0:00:23]} 47. Rd6 {[%emt 0:02:20]} e4 {[%emt 0:00:53]} 48. Re6 {[%emt 0:00:28]} Kd4 {[%emt 0:00:26]} 49. Kf4 {[%emt 0:00:10]} Ra4 {[%emt 0:06:25]} 50. Rxe4+ Kc3 51. Re6 {[%emt 0:01:08]} Rxb4+ {[%emt 0:00:59]} 52. Ke3 {[%emt 0:00:04]} a5 {[%emt 0:00:08]} 0-1

[Event "71st RUS-ch Higher League 2018"]
[Site "Yaroslavl"]
[Date "2018.06.30"]
[Round "5"]
[White "Tekeyev, Zaur"]
[Black "Okrugin, Sergey"]
[Result "1/2-1/2"]
[ECO "C50"]
[WhiteElo "2407"]
[BlackElo "2334"]
[Annotator "NA"]
[PlyCount "87"]
[EventDate "2018.06.26"]
[EventType "swiss"]
[EventCountry "RUS"]
[SourceTitle "playchess.com"]
[Source "ChessBase"]
[SourceQuality "1"]
[TimeControl "40/5400+30:1800+30"]

1. e4 {[%emt 0:00:00]} e5 {[%emt 0:00:00]} 2. Nf3 {[%emt 0:00:21]} Nc6 {[%emt 0:00:00]} 3. Bc4 {[%emt 0:00:31]} Nf6 {[%emt 0:00:00]} 4. d3 {[%emt 0:00:40]} Bc5 5. O-O {[%emt 0:01:09]} O-O {[%emt 0:00:21]} 6. Bg5 d6 {[%emt 0:07:28]} 7. c3 {[%emt 0:05:36]} a6 {[%emt 0:01:57]} 8. b4 {[%emt 0:13:38]} Ba7 {[%emt 0:01:02]} 9. Nbd2 {[%emt 0:00:05]} Be6 {[%emt 0:09:09]} 10. Bd5 {[%emt 0:21:29]} Kh8 {[%emt 0:10:49]} 11. Kh1 {[%emt 0:09:03]} Rg8 {[%emt 0:12:03]} 12. Bxe6 {[%emt 0:10:10]} fxe6 {[%emt 0:00:16]} 13. a4 {[%emt 0:00:58]} Qe8 {[%emt 0:09:11]} 14. Bxf6 {[%emt 0:07:49]} gxf6 {[%emt 0:00:13]} 15. Nh4 {[%emt 0:00:04]} Ne7 {[%emt 0:05:42]} 16. f4 {[%emt 0:04:56]} Ng6 {[%emt 0:12:18]} 17. Nxg6+ {[%emt 0:01:42]} Qxg6 {[%emt 0:00:05]} 18. Qe2 {[%emt 0:00:30]} exf4 {[%emt 0:01:23]} 19. Rxf4 {[%emt 0:00:34]} Be3 {[%emt 0:00:21]} 20. Rf3 {[%emt 0:00:38]} Bxd2 {[%emt 0:01:58]} 21. Qxd2 {[%emt 0:00:02]} Raf8 {[%emt 0:04:13]} 22. Raf1 {[%emt 0:00:18]} f5 {[%emt 0:00:29]} 23. g3 {[%emt 0:04:07]} Rf6 {[%emt 0:01:15]} 24. Qe3 {[%emt 0:02:42]} Rgf8 {[%emt 0:01:52]} 25. e5 {[%emt 0:01:15]} R6f7 {[%emt 0:01:55]} 26. Re1 {[%emt 0:01:24]} d5 {[%emt 0:01:26]} 27. Rf4 {[%emt 0:00:19]} c6 {[%emt 0:00:58]} 28. Rh4 {[%emt 0:01:22]} Rg7 {[%emt 0:00:57]} 29. Rf1 {[%emt 0:00:48]} Qe8 {[%emt 0:00:30]} 30. Rff4 {[%emt 0:01:42]} Rfg8 {[%emt 0:01:30]} 31. Qb6 {[%emt 0:00:36]} Qb8 {[%emt 0:01:10]} 32. Qd4 {[%emt 0:00:47]} b6 {[%emt 0:03:23]} 33. Kg2 {[%emt 0:08:12]} c5 {[%emt 0:01:43]} 34. Qe3 {[%emt 0:02:06]} Qc7 {[%emt 0:02:30]} 35. Rh6 {[%emt 0:00:37]} Rg6 {[%emt 0:01:21]} 36. Rfh4 {[%emt 0:00:31]} R8g7 {[%emt 0:00:25]} 37. Kh3 {[%emt 0:01:05]} a5 {[%emt 0:05:17]} 38. Rxg6 {[%emt 0:00:28]} Rxg6 {[%emt 0:00:02]} 39. b5 {[%emt 0:00:38]} Qg7 {[%emt 0:00:27]} 40. Qf4 {[%emt 0:00:00]} Rg5 {[%emt 0:00:00]} 41. Kg2 {[%emt 0:16:59]} Rg4 {[%emt 0:07:34]} 42. Rxg4 {[%emt 0:01:41]} Qxg4 {[%emt 0:00:35]} 43. Qe3 {[%emt 0:04:50]} Kg7 {[%emt 0:03:08]} 44. h3 {[%emt 0:01:40]} 1/2-1/2